bitfinex/quotes_ETHUSD_20251120
["timestamp","ask_amount","ask_price","bid_price","bid_amount"]
[1763625029648,0.112,3041.6,3041.1,1.45046351]
[1763625029887,0.4611,3041.7,3041.2,6.57635144]
[1763625030073,0.112,3041.6,3041.2,6.57635144]
[1763625030275,0.112,3041.5,3041.2,6.57635144]
[1763625030848,0.112,3041.4,3041.2,6.57635144]
[1763625031179,0.112,3041.4,3041.3,0.8026815]
[1763625031363,0.4525,3041.3,3041.2,4.19516836]
[1763625032882,0.9136,3041.3,3041.1,3.28824098]
[1763625033048,0.4525,3041.2,3041.1,3.28824098]
[1763625033250,0.9136,3041.2,3041.0,0.001]
[1763625033457,0.4525,3041.1,3041.0,0.001]
[1763625033675,0.9136,3041.1,3041.0,3.28939197]
[1763625033855,0.9136,3041.1,3041.0,0.001]
[1763625036899,4.20188384,3041.1,3041.0,0.001]
[1763625039198,0.9136,3041.1,3041.0,0.001]
[1763625040800,1.0256,3041.1,3041.0,0.001]
[1763625042067,4.31388384,3041.1,3041.0,0.001]
[1763625043631,1.0256,3041.1,3041.0,0.001]
[1763625047319,4.31388384,3041.1,3041.0,0.001]
[1763625047993,1.0256,3041.1,3041.0,0.001]
[1763625050627,1.0276,3041.1,3041.0,0.001]
[1763625051841,0.9156,3041.1,3041.0,0.001]
[1763625052005,1.0276,3041.1,3041.0,0.001]
[1763625053240,4.31588384,3041.1,3041.0,0.001]
[1763625053607,1.0276,3041.1,3041.0,0.001]
[1763625056246,0.9156,3041.1,3041.0,0.001]
[1763625056543,1.0276,3041.1,3041.0,0.001]
[1763625057242,0.9156,3041.1,3041.0,0.001]
[1763625057439,1.0276,3041.1,3041.0,0.001]
[1763625059553,0.9156,3041.1,3041.0,0.001]
[1763625059756,1.0276,3041.1,3041.0,0.001]
[1763625060320,0.002,3041.1,3041.0,2.78580593]
[1763625060553,0.114,3041.1,3041.0,6.63125909]
[1763625060917,0.114,3041.1,3041.0,0.55806119]
[1763625060918,0.6092,3041.1,3041.0,0.55806119]
[1763625061346,0.6092,3041.1,3041.0,3.84645316]
[1763625061551,0.6092,3041.1,3041.0,0.55806119]
[1763625061857,1.0928,3041.1,3041.0,0.55806119]
[1763625062217,0.114,3041.1,3041.0,3.84645316]
[1763625062456,0.114,3041.1,3041.0,0.55806119]
[1763625062654,0.114,3041.1,3041.0,0.001]
[1763625064221,1.0928,3041.1,3041.0,0.001]
[1763625065826,0.114,3041.1,3041.0,0.001]
[1763625066792,0.114,3041.1,3041.0,3.28939197]
[1763625066793,0.002,3041.1,3041.0,3.28939197]
[1763625067181,0.114,3041.1,3041.0,3.28939197]
[1763625067375,0.114,3041.1,3041.0,4.61985486]
[1763625067566,0.114,3041.1,3041.0,3.28939197]
[1763625068152,0.6053,3041.1,3041.0,0.001]
[1763625068405,1.0902,3041.1,3041.0,0.001]
[1763625070474,0.6053,3041.1,3041.0,0.001]
[1763625070994,0.002,3041.5,3041.1,8.238736]
[1763625071192,0.4849,3043.2,3041.9,2.78480593]
[1763625071357,2.78480593,3043.6,3042.4,2.78480593]
[1763625071563,0.11609699,3042.5,3042.4,2.78480593]
[1763625071753,0.11609699,3042.5,3042.2,0.87731699]
[1763625071754,0.11609699,3042.5,3042.2,3.66212292]
[1763625071962,0.00409699,3042.5,3042.2,2.78480593]
[1763625072186,0.112,3042.4,3042.3,0.36621229]
[1763625072793,0.112,3042.4,3042.3,3.6531991]
[1763625073296,0.112,3042.4,3042.3,0.36621229]
[1763625073501,0.112,3042.4,3042.3,3.6531991]
[1763625073707,0.112,3042.4,3042.3,0.36621229]
[1763625074091,0.112,3042.4,3042.3,3.6531991]
[1763625076007,0.112,3042.4,3042.3,0.36621229]
[1763625076507,0.112,3042.4,3042.3,3.6531991]
[1763625077708,0.00409699,3042.5,3042.3,3.6531991]
[1763625078007,0.00409699,3042.5,3042.4,0.36531991]
[1763625078376,0.11609699,3042.5,3042.4,0.36531991]
[1763625078935,0.00409699,3042.5,3042.4,0.36531991]
[1763625079076,0.11609699,3042.5,3042.4,0.36531991]
[1763625079674,0.11609699,3042.5,3042.4,3.65219868]
[1763625082518,0.00409699,3042.5,3042.4,3.65219868]
[1763625082845,0.6761,3044.1,3042.5,0.90699264]
[1763625082846,0.4849,3043.9,3042.5,0.90699264]
[1763625083154,0.112,3043.8,3043.4,3.12958922]
[1763625083309,3.12958922,3044.7,3042.7,0.87047733]
[1763625083310,0.112,3044.0,3043.7,3.12958922]
[1763625083656,0.112,3043.9,3043.2,3.12958922]
[1763625083830,0.112,3043.8,3043.4,3.28579877]
[1763625084213,0.112,3043.7,3043.4,3.28579877]
[1763625085119,0.6778,3043.9,3043.4,3.28579877]
[1763625085321,0.112,3043.8,3043.3,3.59884491]
[1763625085543,0.6778,3043.9,3043.3,3.59884491]
[1763625085708,0.112,3043.8,3043.3,3.59884491]
[1763625086239,0.5969,3043.8,3043.3,3.59884491]
[1763625087142,0.002,3043.7,3043.3,3.59884491]
[1763625087519,0.497,3043.7,3043.3,3.59884491]
[1763625088434,0.497,3043.7,3043.3,0.31295892]
[1763625088632,0.4812,3043.4,3043.0,4.19322333]
[1763625088813,0.112,3043.3,3043.1,0.90699264]
[1763625089014,0.112,3043.3,3042.9,3.28632111]
[1763625089334,0.607,3043.3,3042.9,3.28632111]
[1763625090418,0.607,3043.3,3042.8,0.90699264]
[1763625090911,0.607,3043.3,3042.8,1.81822455]
[1763625091112,0.495,3043.3,3042.8,1.81822455]
[1763625091314,0.112,3043.2,3042.8,1.81822455]
[1763625092650,0.112,3043.2,3042.9,3.28633869]
[1763625093151,0.112,3043.2,3042.6,1.63222452]
[1763625093152,0.4812,3043.0,3042.6,1.63222452]
[1763625093346,0.4812,3043.0,3042.5,3.28669951]
[1763625093512,0.4812,3043.0,3042.5,6.57347025]
[1763625093712,0.112,3043.2,3042.5,6.57347025]
[1763625094545,0.607,3043.2,3042.5,6.57347025]
[1763625094724,0.607,3043.2,3042.5,0.98614203]
[1763625094920,7.17906655,3043.2,3042.4,3.28787877]
[1763625095127,7.17906655,3043.2,3042.4,0.001]
[1763625095317,0.495,3043.1,3042.4,0.001]
[1763625097026,0.495,3043.3,3042.4,0.001]
[1763625097248,0.112,3043.2,3042.4,0.001]
[1763625097644,0.607,3043.2,3042.4,0.001]
[1763625097857,0.112,3043.1,3042.4,0.001]
[1763625098261,0.4848,3043.0,3042.4,0.001]
[1763625098556,0.5968,3043.0,3042.4,0.001]
[1763625098936,0.1889,3042.9,3042.4,0.001]
[1763625099341,0.6737,3042.9,3042.4,0.001]
[1763625099783,0.4848,3042.8,3042.4,0.001]
[1763625101858,3.28592468,3043.3,3042.4,0.001]
[1763625101859,0.4848,3043.3,3042.4,0.03386878]
[1763625102036,0.112,3043.2,3042.4,0.90434611]
[1763625102442,0.4848,3043.3,3042.6,0.90699264]
[1763625102642,0.112,3043.2,3042.7,0.87047733]
[1763625103149,0.4848,3043.1,3042.6,1.77746997]
[1763625103347,0.4848,3043.1,3042.6,4.19365289]
[1763625103775,0.4848,3043.1,3042.6,3.28666025]
[1763625104077,0.4846,3042.7,3042.5,7.07671719]
[1763625104242,0.112,3042.6,3042.5,8.85418716]
[1763625104442,0.112,3042.6,3042.5,10.18536903]
[1763625105190,0.112,3042.6,3042.5,9.3148917]
[1763625105341,0.002,3043.7,3042.5,12.60166244]
[1763625105342,3.77228314,3043.7,3042.5,12.60166244]
[1763625105538,3.39758286,3043.6,3042.8,3.12901091]
[1763625105772,3.88238286,3043.6,3042.9,3.79]
[1763625105981,0.002,3043.1,3042.9,3.79]
[1763625106145,0.112,3043.0,3042.9,3.79]
[1763625106343,1.0814,3043.0,3042.9,3.79]
[1763625106539,0.002,3043.1,3042.9,3.79]
[1763625106740,0.002,3043.1,3042.9,4.25643541]
[1763625106741,0.112,3043.0,3042.9,4.25643541]
[1763625107162,0.112,3043.0,3042.9,3.79]
[1763625107374,0.112,3043.0,3042.9,7.07633869]
[1763625107676,0.5966,3043.0,3042.9,3.79]
[1763625107880,0.5966,3043.0,3042.9,7.07633869]
[1763625108177,1.0814,3043.0,3042.9,3.79]
[1763625111708,1.0814,3043.0,3042.8,3.79]
[1763625112005,0.4848,3042.9,3042.8,3.79]
[1763625112175,1.1583,3042.9,3042.8,3.79]
[1763625112375,1.1583,3042.9,3042.7,0.87435405]
[1763625112577,0.9694,3042.8,3042.6,4.66435405]
[1763625112771,0.1889,3042.9,3042.6,4.66435405]
[1763625112772,0.9694,3042.7,3042.6,3.79]
[1763625113317,0.1889,3042.9,3042.6,3.79]
[1763625113472,0.6737,3042.9,3042.6,3.79]
[1763625113903,0.4848,3042.8,3042.6,7.07663558]
[1763625114112,0.6737,3042.9,3042.6,7.07663558]
[1763625114275,0.112,3042.8,3042.6,7.95098963]
[1763625114476,0.112,3042.8,3042.6,7.07663558]
[1763625114689,0.6737,3042.9,3042.6,7.07663558]
[1763625115003,0.112,3042.8,3042.6,7.07663558]
[1763625115203,0.112,3042.8,3042.6,7.95098963]
[1763625115597,0.4846,3042.7,3042.6,0.87435405]
[1763625115779,6.57332544,3042.6,3042.4,0.001]
[1763625115975,0.112,3042.5,3042.4,0.001]
[1763625116191,0.5966,3042.5,3042.4,0.001]
[1763625116510,1.0814,3042.5,3042.4,0.001]
[1763625118623,0.5966,3042.5,3042.4,0.001]
[1763625119429,0.112,3042.5,3042.4,0.001]
[1763625119810,0.002,3043.1,3042.4,0.001]
[1763625119811,3.28822758,3043.1,3042.4,4.26588107]
[1763625120005,0.112,3043.0,3042.7,0.4828]
[1763625120323,3.77302758,3043.1,3042.4,6.57465984]
[1763625120526,3.77302758,3043.1,3042.4,8.8812885]
[1763625120527,0.112,3043.0,3042.4,8.8812885]
[1763625120735,0.112,3043.0,3042.4,7.71153251]
[1763625121224,0.112,3043.0,3042.4,4.42465374]
[1763625121524,0.1889,3042.9,3042.4,3.28778107]
[1763625121729,0.1889,3042.9,3042.4,4.19486889]
[1763625122229,0.1889,3042.9,3042.4,10.61075857]
[1763625122420,0.112,3042.8,3042.4,10.61075857]
[1763625122606,0.112,3042.8,3042.4,11.83834003]
[1763625123120,0.002,3043.1,3042.7,0.4828]
[1763625123428,0.002,3043.1,3043.0,0.4828]
[1763625123629,0.114,3043.1,3043.0,0.4828]
[1763625124427,0.114,3043.1,3042.7,3.62431091]
[1763625124428,0.5986,3043.1,3042.6,3.28664142]
[1763625125128,0.112,3043.0,3042.6,8.41890191]
[1763625125529,0.112,3043.0,3042.6,5.13223919]
[1763625126029,0.112,3043.0,3042.6,4.63693919]
[1763625126247,0.002,3043.1,3042.6,7.92360191]
[1763625126548,0.112,3043.0,3042.6,4.63693919]
[1763625127152,0.112,3043.0,3042.6,7.92360191]
[1763625127450,0.1074,3041.9,3041.4,2.4298471]
[1763625127648,0.1074,3041.9,3041.0,4.07918975]
[1763625127649,3.38471091,3041.5,3041.0,0.001]
[1763625127848,0.1074,3041.9,3041.0,0.001]
[1763625127849,1.93448103,3041.4,3041.0,0.001]
[1763625128148,0.112,3041.3,3041.0,0.001]
[1763625128516,0.2557,3041.2,3041.0,0.001]
[1763625129886,0.112,3041.1,3041.0,0.001]
[1763625130015,3.40028384,3041.1,3041.0,0.001]
[1763625131816,4.23838898,3041.1,3041.0,0.001]
[1763625132022,4.35038898,3041.1,3041.0,0.001]
[1763625133119,4.23838898,3041.1,3041.0,0.001]
[1763625133319,4.35038898,3041.1,3041.0,0.001]
[1763625134870,0.2557,3041.1,3041.0,0.001]
[1763625135029,3.65598384,3041.1,3041.0,0.001]
[1763625136158,3.54398384,3041.1,3041.0,0.001]
[1763625136460,3.65598384,3041.1,3041.0,0.001]
[1763625137568,4.56297648,3041.1,3041.0,0.001]
[1763625138930,8.54778371,3041.1,3041.0,0.001]
[1763625141272,9.25177992,3041.1,3041.0,0.001]
[1763625150410,5.26697269,3041.1,3041.0,0.001]
[1763625150709,5.26697269,3041.1,3041.0,0.9654]
[1763625150710,0.70399621,3041.1,3041.0,0.9654]
[1763625150877,0.112,3041.1,3041.0,0.9654]
[1763625152207,3.40028384,3041.1,3041.0,0.4808]
[1763625154862,0.88633724,3041.6,3041.0,0.4808]
[1763625155067,4.11973816,3042.9,3041.0,0.4808]
[1763625155068,0.112,3041.7,3041.5,0.672]
[1763625155268,8.16657336,3042.5,3041.7,0.4798]
[1763625155468,0.81869464,3042.4,3041.7,0.4798]
[1763625155713,0.70669464,3042.4,3041.8,0.4846]
[1763625155867,0.112,3042.3,3041.8,0.4846]
[1763625156539,0.112,3042.3,3041.5,0.1922]
[1763625156540,2.78449756,3042.0,3041.5,0.1922]
[1763625156700,2.78449756,3042.0,3041.2,0.4846]
[1763625156701,0.2746,3041.9,3041.2,0.4846]
[1763625156904,0.2746,3041.9,3041.3,0.1922]
[1763625156905,2.78449756,3041.8,3041.3,0.1922]
[1763625157126,1.79332988,3042.2,3041.2,0.6768]
[1763625157333,1.12814857,3042.1,3041.8,0.4798]
[1763625157533,1.18331199,3042.4,3041.8,0.4798]
[1763625157534,0.112,3042.0,3041.8,0.4798]
[1763625158042,0.112,3042.0,3041.9,0.4798]
[1763625158418,0.112,3042.0,3041.9,0.9623]
[1763625160266,0.112,3042.0,3041.9,0.4798]
[1763625160790,3.78961097,3042.0,3041.4,3.28893991]
[1763625160946,3.78961097,3042.0,3041.4,4.01412]
[1763625161149,3.78961097,3042.0,3041.4,4.49662]
[1763625161543,3.78961097,3042.0,3041.4,1.20868009]
[1763625162347,3.78961097,3042.0,3041.4,4.49663076]
[1763625163300,7.07692194,3042.0,3041.4,0.001]
[1763625164282,0.112,3041.9,3041.4,0.001]
[1763625164875,0.112,3041.8,3041.4,0.001]
[1763625165277,3.2876352,3041.7,3041.4,0.001]
[1763625165482,0.112,3041.6,3041.5,0.4825]
[1763625165703,0.112,3041.6,3041.4,0.001]
[1763625168602,0.1626,3041.5,3041.4,0.001]
[1763625168957,3.39977724,3041.6,3041.4,0.001]
[1763625169158,0.112,3041.6,3041.4,0.001]
[1763625169372,3.3997568,3041.6,3041.4,0.001]
[1763625170395,0.112,3041.6,3041.4,0.001]
[1763625171167,0.112,3041.6,3041.5,0.4723]
[1763625171571,3.39974329,3041.6,3041.5,0.4723]
[1763625171907,3.39974329,3041.6,3041.4,3.791]
[1763625172570,0.112,3041.6,3041.4,3.791]
[1763625172785,3.28745326,3041.9,3041.5,0.4723]
[1763625172786,3.28759112,3041.8,3041.5,0.4723]
[1763625172955,0.112,3041.7,3041.5,0.4723]
[1763625173160,3.28759112,3041.8,3041.5,0.9548]
[1763625173362,0.112,3041.6,3041.5,0.9548]
[1763625173559,3.28734418,3042.0,3041.7,0.4723]
[1763625173815,0.112,3041.9,3041.8,0.4723]
[1763625174112,0.112,3041.9,3041.6,0.4825]
[1763625174899,3.28734418,3042.0,3041.6,0.4825]
[1763625175145,0.112,3041.9,3041.6,0.4825]
[1763625175390,3.28709486,3042.2,3041.9,0.4723]
[1763625175603,1.67660304,3042.1,3041.9,0.4723]
[1763625176495,3.28709486,3042.2,3042.0,0.4723]
[1763625176698,6.57418972,3042.2,3042.0,0.4723]
[1763625176903,0.112,3042.1,3042.0,0.4723]
[1763625177701,3.28904399,3042.3,3042.0,0.4723]
[1763625177989,0.112,3042.2,3042.0,0.9548]
[1763625178190,3.28904399,3042.3,3042.0,0.9548]
[1763625178361,3.28898681,3042.3,3042.2,0.4723]
[1763625178560,3.40098681,3042.3,3042.2,0.4723]
[1763625180193,0.114,3042.3,3042.2,0.4723]
[1763625180397,0.002,3042.3,3042.2,0.9548]
[1763625180595,0.114,3042.3,3042.2,4.24189486]
[1763625180907,0.002,3042.3,3042.2,5.01355449]
[1763625181307,0.114,3042.3,3042.2,5.01355449]
[1763625182006,0.114,3042.3,3042.2,1.72645963]
[1763625182220,0.114,3042.3,3042.2,5.01355449]
[1763625184327,0.002,3042.3,3042.2,5.01355449]
[1763625184823,0.114,3042.3,3042.2,5.01355449]
[1763625187443,0.002,3042.6,3042.3,0.405504]
[1763625187665,0.002,3042.6,3042.5,9.36686664]
[1763625188104,0.002,3042.7,3042.5,9.86576664]
[1763625188298,0.002,3043.0,3042.7,1.31249664]
[1763625188497,0.114,3043.0,3042.9,0.4564]
[1763625188803,0.002,3043.0,3042.9,1.13218966]
[1763625190305,0.002,3043.0,3042.9,5.32552099]
[1763625191940,0.002,3043.0,3042.9,27.11227409]
[1763625192139,3.28393482,3045.2,3043.2,0.90699264]
[1763625192299,0.112,3044.7,3043.6,1.31249664]
[1763625192504,3.28403198,3045.1,3043.8,0.405504]
[1763625192820,0.112,3044.7,3043.8,0.405504]
[1763625193146,0.112,3044.6,3043.9,0.4989]
[1763625193632,0.3943,3044.5,3043.4,1.40589264]
[1763625193830,0.3943,3044.5,3043.5,0.4989]
[1763625193996,0.3943,3044.5,3043.5,1.31634061]
[1763625194203,0.3943,3044.5,3043.6,0.4989]
[1763625194405,0.3943,3044.5,3043.7,3.28547491]
[1763625194603,0.112,3044.4,3043.7,3.28547491]
[1763625196229,0.112,3044.3,3043.7,3.28547491]
[1763625197735,0.3943,3043.8,3043.4,3.28572478]
[1763625197934,0.112,3043.7,3043.4,6.57152355]
[1763625198139,0.112,3043.7,3043.4,3.28572478]
[1763625198437,0.112,3043.7,3043.3,0.1967]
[1763625198640,0.112,3043.7,3043.4,0.4989]
[1763625198940,0.112,3043.7,3043.6,0.4564]
[1763625199839,0.112,3043.7,3043.4,0.4989]
[1763625200046,0.112,3043.7,3043.6,0.4564]
[1763625200560,0.2662,3043.7,3043.2,3.28590906]
[1763625201121,0.2662,3043.7,3042.8,1.40589264]
[1763625201122,0.3919,3043.3,3042.8,1.40589264]
[1763625201760,3.39748592,3043.7,3043.2,0.4564]
[1763625202317,3.39748592,3043.7,3042.9,0.4989]
[1763625202514,0.3943,3043.6,3042.9,0.4989]
[1763625202928,0.3943,3043.6,3042.7,3.2865547]
[1763625203128,3.28569081,3043.5,3042.7,6.5731094]
[1763625203333,3.28569081,3043.5,3042.7,7.29998034]
[1763625203551,3.67999081,3043.5,3042.7,7.29998034]
[1763625203759,3.67999081,3043.5,3042.7,7.2975385]
[1763625204454,0.3943,3043.5,3042.7,7.7964385]
[1763625204655,0.1027,3043.9,3043.4,0.4564]
[1763625204822,0.112,3043.8,3042.8,0.4989]
[1763625205016,0.112,3043.8,3042.9,1.10829932]
[1763625205453,0.002,3044.5,3044.0,0.405504]
[1763625205668,0.002,3044.5,3044.4,0.6531]
[1763625205856,0.002,3044.5,3044.4,11.210654]
[1763625206034,0.002,3044.5,3044.4,13.47289204]
[1763625206236,0.002,3044.5,3044.4,13.88930552]
[1763625206566,0.002,3044.5,3044.4,13.80756252]
[1763625206748,0.002,3044.5,3044.4,12.47824852]
[1763625206944,0.002,3044.5,3044.4,3.93781948]
[1763625207170,0.002,3044.5,3044.4,4.84481212]
[1763625207467,0.002,3044.5,3044.4,1.56009264]
[1763625207870,0.002,3044.5,3044.1,0.6956]
[1763625208071,0.002,3044.5,3044.2,3.28492173]
[1763625208438,0.002,3044.5,3044.2,3.78382173]
[1763625208734,0.002,3044.5,3043.8,0.4989]
[1763625208989,0.002,3044.5,3043.9,0.1967]
[1763625209351,0.002,3044.5,3043.7,4.19246755]
[1763625209671,0.002,3044.5,3043.7,7.67464246]
[1763625209859,0.3963,3044.5,3043.7,7.67464246]
[1763625210054,0.3963,3044.5,3043.7,4.38916755]
[1763625210253,0.3963,3044.5,3043.7,3.48217491]
[1763625210463,0.002,3044.5,3043.8,1.28767493]
[1763625210661,0.002,3044.5,3043.8,0.67677493]
[1763625210861,0.2569,3043.9,3043.2,0.4989]
[1763625211990,0.2569,3043.9,3043.0,6.57246138]
[1763625212190,0.2569,3043.9,3043.1,0.90699264]
[1763625212391,0.2569,3043.9,3043.0,7.03636138]
[1763625212578,0.2569,3043.9,3043.1,0.90699264]
[1763625212782,0.2569,3043.9,3043.1,1.5122304]
[1763625213295,3.9340858,3043.9,3043.1,1.5122304]
[1763625213506,7.2193716,3043.9,3043.0,3.28623069]
[1763625213658,0.0039,3043.2,3043.0,3.28623069]
[1763625214596,0.3943,3043.6,3042.9,0.90699264]
[1763625215097,0.1027,3043.9,3042.9,0.90699264]
[1763625215287,3.2849774,3044.2,3043.0,0.4639]
[1763625215482,0.32849774,3044.2,3043.1,0.03286122]
[1763625215794,0.112,3044.1,3043.1,0.4639]
[1763625216294,0.5063,3044.1,3043.1,0.4639]
[1763625216699,0.5063,3044.1,3043.2,6.57202944]
[1763625216896,3.39706314,3044.1,3043.2,3.28601472]
[1763625217101,0.73400631,3044.0,3043.2,3.28601472]
[1763625217488,0.1027,3043.9,3043.2,3.28601472]
[1763625217687,0.1027,3043.9,3043.2,7.03592944]
[1763625217888,0.112,3043.8,3043.3,0.4639]
[1763625219178,0.112,3043.8,3043.4,3.28579877]
[1763625219382,0.112,3043.8,3042.8,0.001]
[1763625219383,0.3943,3043.4,3042.8,0.001]
[1763625219672,0.3943,3043.4,3042.9,4.19330048]
[1763625219876,0.3943,3043.4,3042.9,4.66028053]
[1763625220075,0.5485,3043.4,3042.9,4.66028053]
[1763625220282,0.3943,3043.4,3042.9,5.13578053]
[1763625220713,3.55157021,3043.8,3042.9,7.94661922]
[1763625220876,3.55157021,3043.8,3043.0,0.4755]
[1763625221076,3.55157021,3043.8,3043.0,1.31781192]
[1763625221369,0.2662,3043.8,3043.1,3.2861227]
[1763625221592,0.1542,3043.8,3043.1,6.5722454]
[1763625221797,0.112,3043.7,3043.1,6.5722454]
[1763625222210,0.112,3043.7,3043.1,10.3622454]
[1763625222404,0.112,3043.7,3043.2,1.16800573]
[1763625223296,0.002,3044.5,3043.6,0.484]
[1763625223600,0.90699264,3044.3,3043.6,0.484]
[1763625224207,1.30129264,3044.3,3043.6,0.484]
[1763625224901,0.3943,3044.2,3043.5,3.79]
[1763625225101,0.3943,3044.2,3043.5,4.87373135]
[1763625226111,0.2569,3043.6,3043.5,3.79]
[1763625226315,0.3689,3043.6,3043.1,7.07604577]
[1763625226481,0.3689,3043.6,3043.1,10.36216847]
[1763625226686,0.3689,3043.6,3043.1,7.07604577]
[1763625226933,0.3689,3043.6,3043.2,0.70760458]
[1763625228206,0.112,3043.6,3043.3,3.76140674]
[1763625228582,0.112,3043.6,3043.3,3.28590674]
[1763625229212,0.112,3043.6,3043.3,3.76140674]
[1763625230522,0.112,3043.6,3043.4,3.79]
[1763625230725,0.1542,3043.5,3043.4,3.79]
[1763625230917,0.1542,3043.5,3043.1,3.79]
[1763625231105,0.3919,3043.2,3043.1,3.79]
[1763625231288,0.1565,3043.5,3043.1,4.91694763]
[1763625232110,3.39762777,3043.6,3043.1,4.91694763]
[1763625232422,0.112,3043.6,3043.1,7.07611218]
[1763625232628,3.39759934,3043.6,3043.1,7.07611218]
[1763625232801,3.39759934,3043.6,3043.1,3.79]
[1763625233008,3.79189934,3043.6,3043.1,3.79]
[1763625233311,3.39759934,3043.6,3043.1,3.79]
[1763625233511,0.112,3043.6,3043.1,7.07606929]
[1763625233728,0.112,3043.5,3043.1,8.67849596]
[1763625234217,0.112,3043.5,3043.1,8.67853226]
[1763625234402,0.112,3043.5,3043.1,5.39242667]
[1763625234724,0.112,3043.5,3043.1,8.67853518]
[1763625234928,0.112,3043.5,3043.1,8.20303518]
[1763625235301,0.112,3043.5,3043.2,0.82030352]
[1763625236329,0.112,3043.5,3043.4,0.484]
[1763625236532,3.38799124,3043.9,3043.4,0.484]
[1763625236737,0.112,3043.8,3043.4,0.484]
[1763625237235,0.112,3043.8,3043.3,3.79]
[1763625237436,0.112,3043.8,3043.3,7.07590365]
[1763625238835,3.39740615,3043.8,3043.3,7.07590365]
[1763625239028,3.79170615,3043.8,3043.3,7.07590365]
[1763625240329,0.112,3043.8,3043.3,11.52759205]
[1763625240533,0.112,3043.8,3043.4,0.4755]
[1763625240907,0.1027,3043.9,3043.3,11.52759205]
[1763625241237,3.2870997,3044.1,3043.5,0.4755]
[1763625241238,0.112,3043.8,3043.5,0.4755]
[1763625241637,0.112,3043.8,3043.3,8.24168531]
[1763625241838,0.112,3043.8,3043.4,0.87171853]
[1763625242412,0.112,3043.8,3043.5,3.79]
[1763625243221,0.3943,3043.6,3043.5,3.79]
[1763625243644,0.112,3043.8,3043.5,3.79]
[1763625244929,0.3919,3043.6,3043.5,3.79]
[1763625245362,0.112,3043.8,3043.5,3.79]
[1763625246146,3.39738749,3043.8,3043.5,3.79]
[1763625246368,0.3895,3043.6,3043.5,3.79]
[1763625247362,3.67508286,3043.6,3043.5,3.79]
[1763625247662,3.83398286,3043.6,3043.5,3.79]
[1763625248030,0.002,3044.1,3043.5,4.22319081]
[1763625248230,0.114,3044.1,3043.6,0.9299]
[1763625248426,3.39904501,3044.1,3043.6,0.9299]
[1763625248672,0.30819688,3044.0,3043.6,0.9299]
[1763625249227,0.30819688,3044.0,3043.9,0.4764]
[1763625249451,0.112,3044.0,3043.9,0.4764]
[1763625250778,0.114,3044.0,3043.9,0.4764]
[1763625251486,0.002,3044.0,3043.9,0.4764]
[1763625251979,0.114,3044.0,3043.9,0.4764]
[1763625252155,0.114,3044.0,3043.9,0.89792382]
[1763625255186,0.002,3044.0,3043.9,0.89792382]
[1763625255359,0.114,3044.0,3043.9,0.89792382]
[1763625255556,0.114,3044.0,3043.9,1.35142382]
[1763625255891,0.2682,3044.0,3043.9,0.42152382]
[1763625256192,0.2682,3044.0,3043.2,1.36049264]
[1763625256391,0.0039,3043.9,3043.3,0.4535]
[1763625256686,0.1066,3043.9,3043.1,6.57220201]
[1763625256888,0.1066,3043.9,3043.2,0.6572202]
[1763625257280,6.57717755,3043.9,3043.2,4.39668807]
[1763625257979,3.29185904,3043.9,3043.2,4.39668807]
[1763625258158,6.57717755,3043.9,3043.2,4.39668807]
[1763625258359,3.29186227,3043.9,3043.2,4.39668807]
[1763625258558,0.112,3043.8,3043.2,4.39668807]
[1763625259273,3.39743638,3043.8,3043.2,1.1107202]
[1763625259476,3.39743638,3043.8,3043.2,0.6572202]
[1763625259676,3.39743638,3043.8,3043.0,3.28622314]
[1763625259994,3.69173638,3043.8,3043.0,4.19321578]
[1763625260202,3.69173638,3043.8,3043.0,7.93294647]
[1763625260492,1.92463497,3043.7,3042.8,0.001]
[1763625260694,0.30801354,3043.6,3042.8,0.001]
[1763625260894,0.30801354,3043.6,3042.8,3.28744474]
[1763625261061,0.3080187,3043.6,3042.8,3.28744474]
[1763625261253,0.3080187,3043.6,3042.8,3.74094474]
[1763625261461,3.59369017,3043.6,3042.8,3.74094474]
[1763625261690,0.3080187,3043.5,3042.9,0.70274776]
[1763625261898,0.112,3043.4,3042.9,0.70274776]
[1763625262285,0.112,3043.4,3042.9,1.15624776]
[1763625262481,0.112,3043.4,3042.9,3.98905216]
[1763625262685,0.112,3043.3,3043.0,0.4535]
[1763625262879,0.112,3043.2,3043.0,0.89785522]
[1763625263096,0.112,3043.2,3043.1,0.1924]
[1763625263303,0.112,3043.2,3043.1,1.1223]
[1763625263967,0.112,3043.3,3043.1,1.1223]
[1763625264167,0.31443573,3043.9,3043.2,0.4535]
[1763625264366,0.112,3043.8,3043.2,0.9299]
[1763625264578,0.112,3043.8,3043.3,3.28590674]
[1763625264898,0.112,3043.8,3043.4,0.75018161]
[1763625265204,0.112,3043.8,3043.4,1.20368161]
[1763625265406,0.112,3043.8,3043.5,0.4535]
[1763625265791,0.112,3043.7,3043.5,0.4535]
[1763625266215,0.112,3043.7,3043.6,0.4764]
[1763625266417,3.28716761,3044.0,3043.6,0.4764]
[1763625266581,0.41982355,3043.9,3043.6,0.4764]
[1763625266991,0.30782355,3043.9,3043.3,3.28587086]
[1763625267182,0.112,3043.8,3043.4,0.65718597]
[1763625267380,0.112,3043.8,3043.4,1.11068597]
[1763625267594,0.112,3043.8,3043.4,0.65718597]
[1763625267915,0.112,3043.8,3043.5,0.4659]
[1763625268112,0.30782355,3043.9,3043.5,0.4659]
[1763625268418,0.112,3043.7,3043.5,0.4659]